{"text_format":"1","workbook":"xlsx","n_sheets":5,"sheets":["使用開始終了画面","登録・書き換えインストールの方法","１台登録保存ブック名・保存ファイル形式設定","２台登録保存ブック名・保存ファイル形式設定","３台登録保存ブック名・保存ファイル形式設定"],"not_rendered":{"charts":0,"images":0,"macros":1,"external_links":0,"defined_names":5,"comments":3,"pivot_tables":0},"unopened":[],"bounds":{"document_bytes":16777216,"sheet_cells":100000,"rows_first":2000,"rows_last":500,"rows_between":2000,"halvings":0,"cell_chars":16384,"cell_head_chars":4096},"cells_cut":0,"cells_raw":0,"read":"whole","date_system":"1900"}

{"sheet":"使用開始終了画面","index":0,"n_rows":0,"n_cols":0,"rows_kept":0,"cut":false,"hidden":false,"merged":[]}

{"sheet":"登録・書き換えインストールの方法","index":1,"n_rows":5,"n_cols":3,"rows_kept":5,"cut":false,"hidden":false,"merged":[[1,1,1,12],[4,2,27,12]]}
[]
[null,"210人60クラス試用版時間割編成ファイル登録・書き換えインストールの方法"]
[]
[]
[null,null,"  私どものホームページよりダウンロードいただいた４個の79人30クラス試用版時間割編成ファイル\n「210ninn60kurasujikannwarisisutemusiyoubannver1.xlsm」\n「210ninn60kurasujikannwarisisutemukannibannsiyoubannver1.xlsm」\n「210ninn60kurasukomanyuuryokusisutemusiyoubannver1.xlsm」\n「210ninn60kurasujikannwarisisutemuseigyosiyoubannver1.xlsm」\nおよび登録・書き換えインストールするための２つのファイル\n「210ninn60kurasujikannwarisisutemusiyoubanninnsutoolfailever1.xlsm」\n「210ninn60kurasujikannwarisisutemusiyoubanntourokuyouever1.xlsm」\nと２つのマニュアル\n「210ninn60kurasusiyoubannjikannwarihennseifailetourokukakikaemanyuaru.pdf」\n「210ninn60kurasusiyoubannjikannwar79ninn30kurasusiyoubannjikannwarihennseifairunosiyounanyuaru.pdf」\nを210人60クラス試用版時間割編成ファイルを使用するパソコンのDドライブに、登録・書き換えインストールをおこなうためのフォルダー\n例えば、フォルダー「210人60クラス試用版時間割編成ファイル」を作成し、そのファルダーに全て複写しておきます。複写したら、先ず、上記ファイル\n「210ninn60kurasusiyoubannjikannwarihennseifailetourokukakikaemanyuaru.pdf」\nをよくご覧いただき、このマニュアルに沿って、上記ファイル\n「210ninn60kurasujikannwarisisutemusiyoubanntourokuyouever1.xlsm」\nを立ち上げて登録・書き換えインストール作業を行ってください。\nただし、重要な注意点がありますので、マニュアル\n「210ninn60kurasusiyoubannjikannwarihennseifailetourokukakikaemanyuaru.pdf」\nについては、よく熟読してください。\n"]

{"sheet":"１台登録保存ブック名・保存ファイル形式設定","index":2,"n_rows":47,"n_cols":12,"rows_kept":47,"cut":false,"hidden":false,"merged":[[3,1,3,6],[4,5,4,6],[5,1,10,1],[5,3,5,6],[6,3,6,6],[7,3,7,6],[8,3,8,6],[9,3,9,6],[10,3,10,6],[12,1,12,2],[12,3,12,6],[21,2,21,3],[22,2,22,3],[13,1,13,2],[13,3,13,6],[24,2,24,3],[17,1,17,6],[18,2,18,3],[19,2,19,3],[20,2,20,3],[23,2,23,3],[30,2,30,3],[31,2,31,3],[32,2,32,3],[25,2,25,3],[26,2,26,3],[27,2,27,3],[28,2,28,3],[29,2,29,3],[37,2,37,3],[38,2,38,3],[39,2,39,3],[40,2,40,3],[33,2,33,3],[34,2,34,3],[35,2,35,3],[36,2,36,3],[45,2,45,3],[46,1,46,5],[41,2,41,3],[42,2,42,3],[43,2,43,3],[44,2,44,3]]}
[" "]
[null,null,null,null,null,null,null,null,null,null,null,0]
[]
[null,"時間割編成システム  コンピュータ１台登録用購入申込書"]
[null,null,null,null,"（申込年月日）","平成＊＊年＊＊月＊＊日"]
[null,"購入申込者","郵便番号"]
[null,null,"住所"]
[null,null,"氏名"]
[null,null,"電話番号"]
[null,null,"ＰＣメールアドレス"]
[null,null,"ホームページアドレス"]
[]
[null,"コンピュータ",null,"登録ナンバー"]
[null,"１台",null,null,null,null,null,"E4903057189AF4BA多田記一"]
[]
[]
[]
[null,"購入申込システム"]
[null,"ＮＯ","システム名",null,"価格（税込）","購入希望","金額"]
[null,1,"210ninn60kurasujikannwarisisutemusiyoubannver1.xlsm",null,null,1]
[null,2,"210ninn60kurasujikannwarisisutemukannibannsiyoubannkuver1.xlsm",null,null,1]
[null,3,"210ninn60kurasukomanyuuryokusisutemusiyoubannver1.xlsm",null,null,1]
[null,4,"210ninn60kurasujikannwarisisutemuseigyosiyoubannver1.xlsm",null,null,1]
[null,5]
[null,6]
[null,7]
[null,8]
[null,9]
[null,10]
[null,11]
[null,12]
[null,13]
[null,14]
[null,15]
[null,16]
[null,17]
[null,18]
[null,19]
[null,20]
[null,21]
[null,22]
[null,23]
[null,24]
[null,25]
[null,26]
[null,27]
[null,"金額合計"]

{"sheet":"２台登録保存ブック名・保存ファイル形式設定","index":3,"n_rows":47,"n_cols":12,"rows_kept":47,"cut":false,"hidden":false,"merged":[[3,1,3,6],[4,5,4,6],[5,1,10,1],[5,3,5,6],[6,3,6,6],[7,3,7,6],[8,3,8,6],[9,3,9,6],[10,3,10,6],[12,1,12,2],[12,3,12,6],[19,2,19,3],[20,2,20,3],[13,1,13,2],[13,3,13,6],[22,2,22,3],[14,1,14,2],[14,3,14,6],[17,1,17,6],[18,2,18,3],[21,2,21,3],[28,2,28,3],[29,2,29,3],[30,2,30,3],[23,2,23,3],[24,2,24,3],[25,2,25,3],[26,2,26,3],[27,2,27,3],[35,2,35,3],[36,2,36,3],[37,2,37,3],[38,2,38,3],[31,2,31,3],[32,2,32,3],[33,2,33,3],[34,2,34,3],[43,2,43,3],[44,2,44,3],[45,2,45,3],[46,1,46,5],[39,2,39,3],[40,2,40,3],[41,2,41,3],[42,2,42,3]]}
[]
[null,null,null,null,null,null,null,null,null,null,null," "]
[]
[null,"時間割編成システム  コンピュータ２台登録用購入申込書"]
[null,null,null,null,"（申込年月日）","平成＊＊年＊＊月＊＊日"]
[null,"購入申込者","郵便番号"]
[null,null,"住所"]
[null,null,"氏名"]
[null,null,"電話番号"]
[null,null,"ＰＣメールアドレス"]
[null,null,"ホームページアドレス"]
[]
[null,"コンピュータ",null,"登録ナンバー"]
[null,"１台目",null,null,null,null,null,"3AC014F1CE951EA4KiitiTada"]
[null,"2台目",null,null,null,null,null,"3AC014F1CE951EA4KiitiTada"]
[]
[]
[null,"購入申込システム"]
[null,"ＮＯ","システム名",null,"価格（税込）","購入希望","金額"]
[null,1,"時間割編成システムAdvaceNew２台登録Ver1.xlsm",null,null,null,{"$f":"E20*F20","v":0}]
[null,2,"時間割編成システム簡易版AdvanceNew２台登録Ver1.xlsm",null,null,null,0]
[null,3,"時間割コマ入力システムAdvanceNew２台登録Ver1.xlsm",null,null,null,0]
[null,4,"時間割編成システム制御AdvanceNew２台登録Ver1.xlsm",null,null,null,40000]
[null,5,null,null,null,null,0]
[null,6,null,null,null,null,0]
[null,7,null,null,null,null,0]
[null,8,null,null,null,null,0]
[null,9,null,null,null,null,0]
[null,10,null,null,null,null,0]
[null,11,null,null,null,null,0]
[null,12,null,null,null,null,0]
[null,13,null,null,null,null,0]
[null,14,null,null,null,null,0]
[null,15,null,null,null,null,0]
[null,16,null,null,null,null,0]
[null,17,null,null,null,null,0]
[null,18,null,null,null,null,0]
[null,19,null,null,null,null,0]
[null,20,null,null,null,null,0]
[null,21,null,null,null,null,0]
[null,22,null,null,null,null,0]
[null,23,null,null,null,null,0]
[null,24,null,null,null,null,0]
[null,25,null,null,null,null,0]
[null,26,null,null,{"$f":"'１台登録保存ブック名・保存ファイル形式設定'!E45*1.5","v":0},null,0]
[null,27,null,null,{"$f":"'１台登録保存ブック名・保存ファイル形式設定'!E46*1.5","v":0},null,0]
[null,"金額合計",null,null,null,null,{"$f":"SUM(G20:G46)","v":40000}]

{"sheet":"３台登録保存ブック名・保存ファイル形式設定","index":4,"n_rows":53,"n_cols":12,"rows_kept":53,"cut":false,"hidden":false,"merged":[[3,1,3,6],[4,5,4,6],[5,1,10,1],[5,3,5,6],[6,3,6,6],[7,3,7,6],[8,3,8,6],[9,3,9,6],[10,3,10,6],[14,1,14,2],[14,3,14,6],[15,1,15,2],[15,3,15,6],[12,1,12,2],[12,3,12,6],[13,1,13,2],[13,3,13,6],[21,2,21,3],[22,2,22,3],[23,2,23,3],[24,2,24,3],[17,1,17,6],[18,2,18,3],[19,2,19,3],[20,2,20,3],[29,2,29,3],[30,2,30,3],[31,2,31,3],[32,2,32,3],[25,2,25,3],[26,2,26,3],[27,2,27,3],[28,2,28,3],[37,2,37,3],[38,2,38,3],[39,2,39,3],[40,2,40,3],[33,2,33,3],[34,2,34,3],[35,2,35,3],[36,2,36,3],[45,2,45,3],[46,1,46,5],[41,2,41,3],[42,2,42,3],[43,2,43,3],[44,2,44,3]]}
[]
[null,null,null,null,null,null,null,null,null,null,null," "]
[]
[null,"時間割編成システム  コンピュータ３台登録用購入申込書"]
[null,null,null,null,"（申込年月日）","平成＊＊年＊＊月＊＊日"]
[null,"購入申込者","郵便番号"]
[null,null,"住所"]
[null,null,"氏名"]
[null,null,"電話番号"]
[null,null,"ＰＣメールアドレス"]
[null,null,"ホームページアドレス"]
[]
[null,"コンピュータ",null,"登録ナンバー"]
[null,"１台目"]
[null,"2台目"]
[null,"3台目"]
[]
[null,"購入申込システム"]
[null,"ＮＯ","システム名",null,"価格（税込）","購入希望","金額"]
[null,1,"時間割編成システムAdvaceNew３台登録Ver1.xlsm",null,null,0,{"$f":"E20*F20","v":0}]
[null,2,"時間割編成システム簡易版AdvanceNew３台登録Ver1.xlsm",null,null,0,0]
[null,3,"時間割コマ入力システムAdvanceNew３台登録Ver1.xlsm",null,null,0,0]
[null,4,"時間割編成システム制御AdvanceNew３台登録Ver1.xlsm",null,null,0,50000]
[null,5,null,null,null,0,0]
[null,6,null,null,null,0,0]
[null,7,null,null,null,0,0]
[null,8,null,null,null,0,0]
[null,9,null,null,null,0,0]
[null,10,null,null,null,0,0]
[null,11,null,null,null,0,0]
[null,12,null,null,null,0,0]
[null,13,null,null,null,0,0]
[null,14,null,null,null,0,0]
[null,15,null,null,null,0,0]
[null,16,null,null,null,0,0]
[null,17,null,null,null,0,0]
[null,18,null,null,null,0,0]
[null,19,null,null,null,0,0]
[null,20,null,null,null,0,0]
[null,21,null,null,null,0,0]
[null,22,null,null,null,0,0]
[null,23,null,null,null,0,0]
[null,24,null,null,null,0,0]
[null,25,null,null,null,0,0]
[null,26,null,null,{"$f":"'１台登録保存ブック名・保存ファイル形式設定'!E45*2","v":0},0,0]
[null,27,null,null,{"$f":"'１台登録保存ブック名・保存ファイル形式設定'!E46*2","v":0},0,0]
[null,"金額合計",null,null,null,null,{"$f":"SUM(G20:G46)","v":50000}]
[]
[]
[]
[null,"4C3904F5"]
[null,"4C3904F5"]
[null,"4C3904F5"]